[Event "World Junior U20 Girls 2018"]
[Site "Gebze"]
[Date "2018.09.14"]
[Round "10"]
[White "Auvray, Honorine"]
[Black "Kubicka, Anna"]
[Result "1/2-1/2"]
[ECO "B90"]
[WhiteElo "2050"]
[BlackElo "2204"]
[Annotator "NA"]
[PlyCount "134"]
[EventDate "2018.09.05"]
[EventType "swiss"]
[EventCountry "TUR"]
[SourceTitle "playchess.com"]
[Source "ChessBase"]
[SourceQuality "1"]
[TimeControl "40/5400+30:1800+30"]

1. e4 {[%emt 0:00:30]} c5 {[%emt 0:00:30]} 2. Nf3 {[%emt 0:00:30]} d6 {[%emt 0:00:00]} 3. d4 {[%emt 0:00:00]} cxd4 {[%emt 0:00:00]} 4. Nxd4 {[%emt 0:00:00]} Nf6 {[%emt 0:00:00]} 5. Nc3 {[%emt 0:00:30]} a6 {[%emt 0:00:00]} 6. f3 {[%emt 0:00:30]} e5 {[%emt 0:00:30]} 7. Nb3 {[%emt 0:00:00]} Be7 {[%emt 0:00:30]} 8. Be3 {[%emt 0:00:00]} Be6 {[%emt 0:00:00]} 9. Qd2 {[%emt 0:00:00]} O-O {[%emt 0:00:00]} 10. O-O-O {[%emt 0:00:00]} Nbd7 {[%emt 0:00:30]} 11. g4 {[%emt 0:00:00]} b5 {[%emt 0:00:00]} 12. Rg1 {[%emt 0:00:00] B90: Sicilian Najdorf: Unusual White 6th moves, 6 Be3 Ng4 and 6 Be3 e5} (12. g5 Nh5 13. Nd5 Bxd5 14. exd5 f5 15. Rg1 f4 16. Bf2 Bxg5 17. Bh3 Be7 18. Na5 Qc7 19. Nc6 Rae8 20. Qb4 Nhf6 21. Qa3 {1-0 (39) Kobalia,M (2619)-Jakovenko,D (2748) Satka 2018}) 12... Qc7 {[%emt 0:00:00]} 13. g5 {[%emt 0:04:30]} Nh5 {[%emt 0:00:30]} 14. Nd5 {[%emt 0:07:30]} Bxd5 {[%emt 0:00:30]} 15. exd5 {[%emt 0:00:00]} f5 {[%emt 0:03:30]} 16. gxf6 {[%emt 0:08:00]} Bxf6 {[%emt 0:00:00]} 17. Kb1 {[%emt 0:10:30]} Nb6 {[%emt 0:04:00]} 18. Na5 {[%emt 0:18:30] [#]} Nf4 $146 {[%emt 0:01:30]} 19. Nc6 {[%emt 0:07:30]} Kh8 {[%emt 0:05:30]} 20. Bxf4 {[%emt 0:04:30]} exf4 {[%emt 0:00:00]} 21. Rg4 {[%emt 0:00:30]} Rfc8 {[%emt 0:06:00]} 22. Qxf4 {[%emt 0:04:30]} Nxd5 {[%emt 0:01:30]} 23. Rxd5 {[%emt 0:01:30]} Qxc6 {[%emt 0:00:00]} 24. Qf5 {[%emt 0:03:30]} Re8 {[%emt 0:01:00]} 25. Rd1 {[%emt 0:04:30]} Re5 {[%emt 0:02:30]} 26. Qf4 {[%emt 0:03:30]} Rae8 {[%emt 0:02:30]} 27. Bd3 {[%emt 0:00:30]} Qc5 {[%emt 0:03:30]} 28. Qd2 {[%emt 0:06:04]} Rh5 {[%emt 0:09:30]} 29. Re4 {[%emt 0:07:04]} Rxe4 {[%emt 0:00:30]} 30. Bxe4 {[%emt 0:00:10]} Qe5 {[%emt 0:00:30]} 31. Qc3 $15 {[%emt 0:08:50]} (31. Qb4 $11) 31... Qxc3 {[%emt 0:02:30]} 32. bxc3 {[%emt 0:00:30]} Bxc3 {[%emt 0:00:30]} 33. Rxd6 {[%emt 0:00:30]} g6 {[%emt 0:00:30]} 34. Rc6 {[%emt 0:00:30]} b4 {[%emt 0:00:30]} 35. Rxa6 {[%emt 0:00:38]} Rxh2 {[%emt 0:00:30]} 36. a3 {[%emt 0:00:12]} bxa3 {[%emt 0:05:30]} 37. Rxa3 {[%emt 0:01:32]} Rh1+ {[%emt 0:00:30]} 38. Ka2 {[%emt 0:00:30]} Ra1+ {[%emt 0:00:30]} 39. Kb3 {[%emt 0:00:30]} Rxa3+ {[%emt 0:00:30]} 40. Kxa3 {[%emt 0:00:00]} Kg7 {[%emt 0:00:00]} 41. Kb3 {[%emt 0:00:00]} Be5 {[%emt 0:00:00]} 42. Kc4 {[%emt 0:00:30]} Kf6 {[%emt 0:00:30]} 43. Kd3 {[%emt 0:01:30]} h5 {[%emt 0:03:30]} 44. Ke2 {[%emt 0:00:30]} h4 {[%emt 0:00:30]} 45. Kf2 {[%emt 0:00:30]} h3 {[%emt 0:00:30]} 46. Kg1 {[%emt 0:00:30]} Bd6 {[%emt 0:00:30]} 47. Kh1 {[%emt 0:00:30]} Kg5 {[%emt 0:01:30]} 48. c4 {[%emt 0:01:30]} Bb8 {[%emt 0:00:30]} 49. Bd3 {[%emt 0:00:30]} Bc7 {[%emt 0:01:30]} 50. Be4 {[%emt 0:00:30]} Kf6 {[%emt 0:00:30]} 51. Bb7 {[%emt 0:00:30]} Kg5 {[%emt 0:00:30]} 52. Be4 {[%emt 0:00:30]} Kh5 {[%emt 0:00:30]} 53. Bd3 {[%emt 0:00:30]} Bd6 {[%emt 0:00:30]} 54. Be4 {[%emt 0:00:30]} Kh6 {[%emt 0:00:30]} 55. Bb7 {[%emt 0:00:00]} Kg5 {[%emt 0:01:30]} 56. Be4 {[%emt 0:00:00]} Bb8 {[%emt 0:00:30]} 57. Bd3 {[%emt 0:00:00]} Kf6 {[%emt 0:02:30]} 58. Be4 {[%emt 0:00:00]} g5 {[%emt 0:01:30]} 59. Bb7 {[%emt 0:00:30]} Bf4 {[%emt 0:01:30]} 60. Bc8 {[%emt 0:00:30]} h2 {[%emt 0:00:00]} 61. c5 {[%emt 0:00:00]} Ke5 {[%emt 0:00:00]} 62. c6 {[%emt 0:00:00]} Kd4 {[%emt 0:01:30]} 63. Kg2 {[%emt 0:00:30]} Ke3 {[%emt 0:00:00]} 64. Bg4 {[%emt 0:00:30]} Bc7 {[%emt 0:00:00]} 65. Bh5 {[%emt 0:00:00]} Kd4 {[%emt 0:01:30]} 66. Bg4 {[%emt 0:00:00]} Kc5 {[%emt 0:00:00]} 67. Bd7 {[%emt 0:00:30]} Bf4 {[%emt 0:00:00]} 1/2-1/2

[Event "World Junior U20 Girls 2018"]
[Site "Gebze"]
[Date "2018.09.14"]
[Round "10"]
[White "Gomez Barrera, Javiera Belen"]
[Black "Alinasab, Mobina"]
[Result "1-0"]
[ECO "C11"]
[WhiteElo "2035"]
[BlackElo "2261"]
[Annotator "NA"]
[PlyCount "99"]
[EventDate "2018.09.05"]
[EventType "swiss"]
[EventCountry "TUR"]
[SourceTitle "playchess.com"]
[Source "ChessBase"]
[SourceQuality "1"]
[TimeControl "40/5400+30:1800+30"]

1. e4 {[%emt 0:00:30]} e6 {[%emt 0:00:30]} 2. d4 {[%emt 0:00:30]} d5 {[%emt 0:00:00]} 3. Nc3 {[%emt 0:00:00]} Nf6 {[%emt 0:00:00]} 4. e5 {[%emt 0:00:00]} Nfd7 {[%emt 0:00:00]} 5. Nce2 {[%emt 0:00:30] LiveBook: 672 Games} c5 {[%emt 0:00:00]} 6. f4 {[%emt 0:00:00]} Nc6 {[%emt 0:00:30]} 7. c3 {[%emt 0:00:00]} a6 {[%emt 0:01:30]} 8. Nf3 {[%emt 0:00:30]} b5 {[%emt 0:00:00]} 9. a3 {[%emt 0:00:00]} Qb6 {[%emt 0:01:00]} 10. g3 {[%emt 0:00:00]} b4 {[%emt 0:05:30]} 11. axb4 {[%emt 0:03:30]} cxb4 {[%emt 0:00:30]} 12. f5 {[%emt 0:02:30]} exf5 $16 {[%emt 0:05:30]} 13. Nf4 {[%emt 0:08:30]} Ne7 {[%emt 0:01:30]} 14. Qa4 {[%emt 0:33:30]} Bb7 {[%emt 0:05:30]} 15. Qxb4 {[%emt 0:07:30]} Qxb4 {[%emt 0:07:30]} 16. cxb4 {[%emt 0:00:30]} Nc6 {[%emt 0:13:30]} 17. b5 {[%emt 0:01:30]} Nb4 {[%emt 0:16:30]} 18. Kd1 {[%emt 0:02:30]} a5 {[%emt 0:05:30]} 19. h4 {[%emt 0:17:30]} Be7 {[%emt 0:06:30]} 20. Ne1 {[%emt 0:11:38]} O-O {[%emt 0:01:30]} 21. Ned3 {[%emt 0:00:18]} Rfc8 {[%emt 0:01:30]} 22. Nxb4 {[%emt 0:00:25]} Bxb4 {[%emt 0:01:30]} 23. Bd3 {[%emt 0:02:34]} g6 {[%emt 0:00:30]} 24. Bd2 {[%emt 0:01:50]} Bxd2 {[%emt 0:13:32]} 25. Kxd2 {[%emt 0:00:30]} Nb6 {[%emt 0:00:00]} 26. b3 {[%emt 0:02:17]} a4 {[%emt 0:06:04]} 27. bxa4 {[%emt 0:00:10]} Nxa4 {[%emt 0:01:10]} 28. Rhc1 {[%emt 0:00:46]} Nb6 {[%emt 0:05:53]} 29. Rxc8+ {[%emt 0:02:37]} Rxc8 {[%emt 0:00:08]} 30. Rc1 {[%emt 0:01:46]} Rxc1 {[%emt 0:00:57]} 31. Kxc1 {[%emt 0:00:30]} Kf8 {[%emt 0:00:30]} 32. Kc2 {[%emt 0:00:30]} Ke7 {[%emt 0:00:30]} 33. Kb3 {[%emt 0:00:00]} Kd7 {[%emt 0:00:00]} 34. Kb4 {[%emt 0:00:00]} Kc7 {[%emt 0:00:51]} 35. e6 {[%emt 0:00:57]} f6 {[%emt 0:00:50]} 36. Kc5 {[%emt 0:01:23]} Na4+ {[%emt 0:00:30]} 37. Kb4 {[%emt 0:00:30]} Nb6 {[%emt 0:00:00]} 38. Kc5 {[%emt 0:00:00]} Na4+ {[%emt 0:00:02]} 39. Kb4 {[%emt 0:00:25]} Nb6 {[%emt 0:00:00]} 40. Kc5 {[%emt 0:00:25]} Na4+ {[%emt 0:00:00]} 41. Kb4 {[%emt 0:00:29]} Nb6 {[%emt 0:00:03]} 42. h5 {[%emt 0:11:30]} gxh5 {[%emt 0:09:30]} 43. Bxf5 {[%emt 0:02:19]} Kd6 {[%emt 0:00:30]} 44. Nxh5 {[%emt 0:04:35]} Ke7 {[%emt 0:14:26]} 45. Nf4 {[%emt 0:02:50]} Kd6 {[%emt 0:05:42]} 46. Bxh7 {[%emt 0:01:31]} Nc4 {[%emt 0:00:14]} 47. Bf5 {[%emt 0:00:42]} Ne3 {[%emt 0:00:44]} 48. g4 {[%emt 0:00:21]} Ke7 {[%emt 0:01:05]} 49. Kc5 {[%emt 0:01:40]} Ba8 {[%emt 0:00:12]} 50. Kb6 {[%emt 0:01:27]} 1-0

[Event "World Junior U20 Girls 2018"]
[Site "Gebze"]
[Date "2018.09.14"]
[Round "10"]
[White "Isha Sharma"]
[Black "Sliwicka, Alicja"]
[Result "0-1"]
[ECO "B24"]
[WhiteElo "2012"]
[BlackElo "2272"]
[Annotator "NA"]
[PlyCount "152"]
[EventDate "2018.09.05"]
[EventType "swiss"]
[EventCountry "TUR"]
[SourceTitle "playchess.com"]
[Source "ChessBase"]
[SourceQuality "1"]
[TimeControl "40/5400+30:1800+30"]

1. e4 {[%emt 0:00:30]} e6 {[%emt 0:00:30]} 2. d3 {[%emt 0:00:30]} c5 {[%emt 0:00:00]} 3. g3 {[%emt 0:00:00]} Nc6 {[%emt 0:00:00]} 4. Bg2 {[%emt 0:00:00]} g6 {[%emt 0:00:30] LiveBook: 264 Games} 5. Nf3 {[%emt 0:03:30]} Bg7 {[%emt 0:00:00]} 6. O-O {[%emt 0:00:00]} Nge7 {[%emt 0:00:00]} 7. Nc3 {[%emt 0:00:00]} O-O {[%emt 0:00:30]} 8. Be3 {[%emt 0:00:30]} d6 {[%emt 0:07:30] B24: Closed Sicilian: 3 g3 sidelines} (8... Nd4 9. Qd2 Nec6 10. Ne1 Qa5 11. Bh6 d6 12. h4 f5 13. h5 Ne5 14. Bg5 Rf7 15. hxg6 hxg6 16. exf5 gxf5 17. Qd1 {0-1 (47) Rathnakaran,K (2441)-Akopian,V (2697) Albena 2012}) 9. Qd2 $1 {[%emt 0:07:30]} e5 {[%emt 0:08:30]} 10. h4 $146 {[%emt 0:03:30]} ({Predecessor:} 10. Nh4 Nd4 11. f4 exf4 12. Bxf4 Be6 13. Nd5 Nxd5 14. exd5 Bg4 15. Bg5 Qd7 16. c3 Nf5 17. Nxf5 Bxf5 18. Rae1 Rae8 19. Be3 b5 20. d4 c4 {½-½ (20) Roy Chowdhury,S (2421)-Ramesh,R (2466) Calicut 2003}) 10... Nd4 {[%emt 0:06:30]} 11. Nh2 {[%emt 0:04:30]} f5 {[%emt 0:05:30]} 12. Bg5 {[%emt 0:11:30]} Ne6 {[%emt 0:12:30]} 13. Bh6 {[%emt 0:00:30]} Bxh6 {[%emt 0:20:30]} 14. Qxh6 {[%emt 0:00:00]} f4 {[%emt 0:00:30]} 15. h5 {[%emt 0:01:00]} Ng7 {[%emt 0:11:30]} 16. g4 {[%emt 0:07:30]} Kh8 {[%emt 0:02:30]} 17. hxg6 {[%emt 0:00:30]} Nxg6 {[%emt 0:00:30]} 18. Nf3 {[%emt 0:00:30]} Ne6 {[%emt 0:00:30]} 19. Nd5 {[%emt 0:00:30]} Bd7 {[%emt 0:00:30]} 20. Kh2 {[%emt 0:19:30]} Rf7 {[%emt 0:01:30]} 21. Rh1 {[%emt 0:00:30]} Qf8 {[%emt 0:00:30]} 22. Qh5 {[%emt 0:00:30]} Qg7 {[%emt 0:01:11]} 23. Kg1 {[%emt 0:02:30]} (23. g5 $14) 23... Ne7 {[%emt 0:02:48]} 24. Nxe7 {[%emt 0:02:30]} Rxe7 {[%emt 0:00:09]} 25. Nh4 {[%emt 0:00:30]} Be8 {[%emt 0:00:53]} 26. Nf5 {[%emt 0:00:30]} Bxh5 {[%emt 0:00:30]} 27. Nxg7 {[%emt 0:00:30]} Bxg4 {[%emt 0:01:48]} 28. Nf5 {[%emt 0:00:00]} Bxf5 {[%emt 0:01:04]} 29. exf5 {[%emt 0:00:00]} Nd4 {[%emt 0:01:59]} 30. f6 {[%emt 0:01:30]} Rf7 {[%emt 0:01:13]} 31. c3 {[%emt 0:03:30]} f3 {[%emt 0:00:55]} 32. cxd4 {[%emt 0:00:30]} fxg2 {[%emt 0:00:30]} 33. Kxg2 {[%emt 0:00:30]} cxd4 {[%emt 0:01:58]} 34. Rh6 {[%emt 0:02:30]} Rg8+ {[%emt 0:01:45]} 35. Kf1 {[%emt 0:00:30]} Rg6 {[%emt 0:02:24]} 36. Rc1 {[%emt 0:00:30]} Rfxf6 {[%emt 0:02:16]} 37. Rxg6 {[%emt 0:00:30]} Rxg6 {[%emt 0:00:09]} 38. Rc8+ {[%emt 0:00:00]} Kg7 {[%emt 0:01:56]} 39. Rc7+ {[%emt 0:00:00]} Kf6 {[%emt 0:00:46]} 40. Rxh7 {[%emt 0:00:00]} Rg7 {[%emt 0:00:43]} 41. Rh6+ {[%emt 0:02:00]} Ke7 {[%emt 0:30:30]} 42. Ke2 {[%emt 0:00:00]} Rf7 {[%emt 0:00:00]} 43. a3 {[%emt 0:02:00]} Kd7 {[%emt 0:00:00]} 44. Rg6 {[%emt 0:00:30]} Kc6 {[%emt 0:00:00]} 45. Rh6 {[%emt 0:00:30]} b5 {[%emt 0:00:00]} 46. Ke1 {[%emt 0:00:30]} a5 {[%emt 0:00:00]} 47. Ke2 {[%emt 0:00:30]} Rb7 {[%emt 0:00:00]} 48. Kd2 {[%emt 0:01:30]} Rf7 {[%emt 0:00:00]} 49. Ke2 {[%emt 0:00:30]} Kc5 {[%emt 0:00:00]} 50. f3 {[%emt 0:00:30]} Rg7 {[%emt 0:00:00]} 51. Kf2 {[%emt 0:00:30]} Kd5 {[%emt 0:00:00]} 52. Rh2 {[%emt 0:06:30]} Rc7 {[%emt 0:00:00]} 53. Ke1 {[%emt 0:02:30]} Rc1+ {[%emt 0:00:00]} 54. Kd2 {[%emt 0:00:30]} Rf1 {[%emt 0:00:00]} 55. Rh3 {[%emt 0:00:30]} Rf2+ {[%emt 0:00:00]} 56. Kc1 {[%emt 0:01:30]} Kc5 {[%emt 0:00:00]} 57. Rg3 {[%emt 0:00:00]} b4 {[%emt 0:00:00]} 58. axb4+ $19 {[%emt 0:01:00]} Kxb4 {[%emt 0:00:00]} 59. Rg6 {[%emt 0:03:30]} Rxf3 {[%emt 0:00:00]} 60. Rxd6 {[%emt 0:00:30]} Rxd3 {[%emt 0:00:00]} 61. Rd5 {[%emt 0:00:00]} Re3 {[%emt 0:00:00]} 62. Kd1 {[%emt 0:05:00]} a4 {[%emt 0:00:00]} 63. Kd2 {[%emt 0:00:30]} Kb3 {[%emt 0:00:00]} 64. Rb5+ {[%emt 0:00:30]} Ka2 {[%emt 0:00:00]} 65. Kc2 {[%emt 0:00:30]} Re2+ {[%emt 0:00:00]} 66. Kd3 {[%emt 0:00:30]} Rxb2 {[%emt 0:00:00]} 67. Rxe5 {[%emt 0:00:00]} Rb4 {[%emt 0:00:00]} 68. Kc2 {[%emt 0:00:00]} a3 {[%emt 0:00:00]} 69. Re8 {[%emt 0:02:30]} Rb3 {[%emt 0:00:04]} 70. Rd8 {[%emt 0:01:30]} d3+ {[%emt 0:00:14]} 71. Kc1 {[%emt 0:00:30]} Rc3+ {[%emt 0:00:30]} 72. Kd2 {[%emt 0:00:00]} Kb2 {[%emt 0:00:00]} 73. Ra8 {[%emt 0:00:00]} Rb3 {[%emt 0:00:05]} 74. Ra5 {[%emt 0:01:30]} a2 {[%emt 0:00:30]} 75. Rg5 {[%emt 0:00:30]} a1=Q {[%emt 0:00:25]} 76. Rg1 {[%emt 0:00:30]} Qa5+ {[%emt 0:00:15]} 0-1

[Event "World Junior U20 Girls 2018"]
[Site "Gebze"]
[Date "2018.09.14"]
[Round "10"]
[White "Cramling Bellon, Anna"]
[Black "Doroy Allaney Jia G"]
[Result "1-0"]
[ECO "E71"]
[WhiteElo "2009"]
[BlackElo "1914"]
[Annotator "NA"]
[PlyCount "69"]
[EventDate "2018.09.05"]
[EventType "swiss"]
[EventCountry "TUR"]
[SourceTitle "playchess.com"]
[Source "ChessBase"]
[SourceQuality "1"]
[TimeControl "40/5400+30:1800+30"]

1. d4 {[%emt 0:00:30]} g6 {[%emt 0:00:30]} 2. c4 {[%emt 0:00:30]} Bg7 {[%emt 0:00:30]} 3. e4 {[%emt 0:00:00]} c5 {[%emt 0:00:30]} 4. d5 {[%emt 0:00:00]} d6 {[%emt 0:00:00]} 5. Nc3 {[%emt 0:00:00]} Nf6 {[%emt 0:00:00]} 6. h3 {[%emt 0:00:00]} h6 {[%emt 0:01:30] E71: Königsindisch (5.h3)} (6... O-O 7. Nf3 e6 8. Bd3 Na6 9. Be3 Re8 10. O-O Nc7 11. a4 Na6 12. Nd2 Nb4 13. Be2 b6 14. Qb3 a6 15. Rae1 Ra7 16. Qd1 Rae7 {½-½ (35) Adhiban,B (2671)-Ponomariov,R (2686) Linares 2018}) 7. Be3 {[%emt 0:01:30]} O-O $146 {[%emt 0:00:00]} ({Vorgänger:} 7... a6 8. a4 a5 9. Qd2 Na6 10. O-O-O Bd7 11. Bd3 Qc7 12. f4 Ng8 13. Nf3 {1-0 (67) Campos Moreno,J (2480)-Ridameya Tatche,J (2145) Barcelona 1999}) 8. Bd3 {[%emt 0:00:00]} Na6 {[%emt 0:04:00]} 9. Nf3 {[%emt 0:01:00]} e6 {[%emt 0:00:30]} 10. O-O {[%emt 0:00:00]} exd5 {[%emt 0:05:30]} 11. exd5 {[%emt 0:01:00]} Nc7 {[%emt 0:00:00]} 12. Qd2 {[%emt 0:02:30]} Kh7 {[%emt 0:01:00]} 13. Rab1 {[%emt 0:17:30]} b6 {[%emt 0:12:30]} 14. Rfe1 {[%emt 0:14:30]} Bb7 {[%emt 0:03:30]} 15. b4 {[%emt 0:00:30]} cxb4 {[%emt 0:08:30]} 16. Rxb4 {[%emt 0:00:30]} Na6 {[%emt 0:00:30]} 17. Rbb1 {[%emt 0:00:30]} Qd7 {[%emt 0:07:30]} 18. Qc2 {[%emt 0:16:30]} (18. Bd4 $16) 18... Rac8 {[%emt 0:12:30]} 19. Qb3 {[%emt 0:05:30]} Nc5 {[%emt 0:04:30]} 20. Bxc5 {[%emt 0:04:30]} Rxc5 {[%emt 0:00:30]} 21. a4 {[%emt 0:03:30]} Nh5 {[%emt 0:02:30]} 22. Ne4 {[%emt 0:11:24]} Rc7 {[%emt 0:05:30]} 23. Qa3 {[%emt 0:01:15]} Rd8 {[%emt 0:09:51]} 24. a5 {[%emt 0:05:32]} bxa5 {[%emt 0:00:30]} 25. Qxa5 {[%emt 0:00:00]} Nf4 $16 {[%emt 0:04:56]} ({Black should play} 25... f5) 26. Bf1 {[%emt 0:00:00]} f5 {[%emt 0:04:08]} 27. Ned2 {[%emt 0:04:20]} Qf7 {[%emt 0:02:16]} 28. Rxb7 {[%emt 0:02:07]} Nxd5 {[%emt 0:02:50]} 29. cxd5 {[%emt 0:02:46]} Rdc8 {[%emt 0:03:03]} 30. Rxc7 {[%emt 0:00:30]} Rxc7 {[%emt 0:00:00]} 31. Bc4 {[%emt 0:01:49]} g5 {[%emt 0:01:35]} 32. Qa3 {[%emt 0:00:55]} Bf8 {[%emt 0:03:43]} 33. Qd3 {[%emt 0:01:08]} Kg8 {[%emt 0:00:14]} 34. Nd4 {[%emt 0:00:40]} f4 {[%emt 0:00:11]} 35. Re6 {[%emt 0:02:15]} 1-0

[Event "World Junior U20 Girls 2018"]
[Site "Gebze"]
[Date "2018.09.14"]
[Round "10"]
[White "Hu, Yu A"]
[Black "Urh, Zala"]
[Result "1/2-1/2"]
[ECO "C65"]
[WhiteElo "2009"]
[BlackElo "2128"]
[Annotator "NA"]
[PlyCount "116"]
[EventDate "2018.09.05"]
[EventType "swiss"]
[EventCountry "TUR"]
[SourceTitle "playchess.com"]
[Source "ChessBase"]
[SourceQuality "1"]
[TimeControl "40/5400+30:1800+30"]

1. e4 {[%emt 0:02:30]} e5 {[%emt 0:00:30]} 2. Nf3 {[%emt 0:01:30]} Nc6 {[%emt 0:00:00]} 3. Bb5 {[%emt 0:00:30]} Nf6 {[%emt 0:00:00]} 4. d3 {[%emt 0:00:30]} Bc5 {[%emt 0:00:30]} 5. c3 {[%emt 0:00:30]} O-O {[%emt 0:00:30]} 6. O-O {[%emt 0:00:30] C65: Ruy Lopez: Berlin Defence (3...Nf6), unusual lines and 4 0-0 Bc5} Re8 {[%emt 0:00:30]} 7. d4 {[%emt 0:01:30]} Bf8 {[%emt 0:14:30]} ({Black should try} 7... Bb6 $11) 8. Re1 {[%emt 0:03:30]} exd4 {[%emt 0:06:30]} 9. e5 {[%emt 0:00:30]} Nd5 {[%emt 0:00:30]} 10. cxd4 {[%emt 0:00:30]} d6 {[%emt 0:02:30]} 11. Bg5 {[%emt 0:02:30]} Be7 $146 {[%emt 0:01:30]} ({Predecessor:} 11... Qd7 12. Nc3 Nxc3 13. bxc3 a6 {1-0 (27) Motylev,A (2643)-Malakhov,V (2699) Kaliningrad 2015}) 12. Bxe7 {[%emt 0:02:30]} Rxe7 {[%emt 0:00:30]} 13. Nc3 {[%emt 0:00:30]} Nxc3 {[%emt 0:03:30]} 14. bxc3 {[%emt 0:00:30]} Bg4 {[%emt 0:00:30]} 15. Qd3 {[%emt 0:01:30]} a6 {[%emt 0:05:30]} 16. Bxc6 {[%emt 0:09:30]} bxc6 {[%emt 0:00:30]} 17. Ng5 {[%emt 0:00:30]} g6 {[%emt 0:03:30]} 18. Ne4 {[%emt 0:09:30]} Bf5 {[%emt 0:01:30]} 19. Nf6+ {[%emt 0:00:30]} Kg7 {[%emt 0:01:30]} 20. Qc4 {[%emt 0:04:30]} c5 {[%emt 0:05:30]} 21. f4 {[%emt 0:06:30]} cxd4 {[%emt 0:04:30]} 22. cxd4 {[%emt 0:00:30]} dxe5 {[%emt 0:00:30]} 23. fxe5 {[%emt 0:00:30]} Rb8 {[%emt 0:03:30]} 24. d5 {[%emt 0:02:30]} Rb2 {[%emt 0:06:30]} 25. Qd4 {[%emt 0:04:30]} Qb8 {[%emt 0:02:30]} 26. d6 {[%emt 0:05:30]} cxd6 {[%emt 0:04:30]} 27. exd6 {[%emt 0:00:30]} Qa7 {[%emt 0:00:30]} 28. Qxa7 {[%emt 0:07:30]} Rxa7 {[%emt 0:00:00]} 29. Re7 {[%emt 0:00:00]} Ra8 {[%emt 0:05:00]} 30. Ne8+ {[%emt 0:07:00]} Kf8 {[%emt 0:01:30]} 31. Nf6 {[%emt 0:01:30]} Rd8 $11 {[%emt 0:17:06]} 32. Nxh7+ {[%emt 0:00:30]} Kg8 {[%emt 0:00:00]} 33. Nf6+ {[%emt 0:21:23]} Kg7 {[%emt 0:00:00]} 34. Ne8+ {[%emt 0:01:43]} Kf8 {[%emt 0:00:13]} 35. Rae1 {[%emt 0:00:00]} Rxa2 {[%emt 0:02:08]} 36. h3 {[%emt 0:00:41]} Rd2 {[%emt 0:01:16]} 37. g4 {[%emt 0:01:36]} Be6 {[%emt 0:01:28]} 38. Nc7 {[%emt 0:00:05]} R2xd6 {[%emt 0:02:10]} 39. R7xe6 {[%emt 0:00:30]} fxe6 {[%emt 0:00:00]} 40. Nxe6+ {[%emt 0:00:16]} Kf7 {[%emt 0:00:13]} 41. Nxd8+ {[%emt 0:30:30]} Rxd8 {[%emt 0:00:00]} 42. Kf2 {[%emt 0:00:00]} a5 {[%emt 0:02:26]} 43. h4 {[%emt 0:00:00]} Rd4 {[%emt 0:04:30]} 44. Re5 {[%emt 0:00:00]} Rxg4 {[%emt 0:01:30]} 45. Rxa5 {[%emt 0:00:00]} Rxh4 {[%emt 0:00:30]} 46. Kg3 {[%emt 0:00:00]} Rb4 {[%emt 0:00:30]} 47. Ra6 {[%emt 0:00:00]} Kg7 {[%emt 0:00:30]} 48. Rc6 {[%emt 0:00:00]} Kh6 {[%emt 0:00:00]} 49. Rc5 {[%emt 0:00:00]} Rb8 {[%emt 0:01:00]} 50. Ra5 {[%emt 0:00:00]} g5 {[%emt 0:00:00]} 51. Ra6+ {[%emt 0:00:00]} Kh5 {[%emt 0:00:00]} 52. Ra3 {[%emt 0:00:00]} Rb4 {[%emt 0:00:30]} 53. Rc3 {[%emt 0:00:00]} Rg4+ {[%emt 0:00:30]} 54. Kh3 {[%emt 0:00:00]} Ra4 {[%emt 0:01:30]} 55. Kg3 {[%emt 0:00:00]} Ra8 {[%emt 0:00:00]} 56. Rb3 {[%emt 0:00:00]} Ra6 {[%emt 0:02:00]} 57. Rc3 {[%emt 0:00:00]} Kg6 {[%emt 0:00:00]} 58. Kg4 {[%emt 0:00:00]} Ra4+ {[%emt 0:01:00]} 1/2-1/2